fUSD/lending_fUSD_20260108
["ID","MTS","AMOUNT","RATE_DAILY","PERIOD"]
[400944083,1767867445263,1136.3,0.00032876,120]
[400944084,1767867445315,500.0,0.00032876,120]
[400944085,1767867445364,500.0,0.00032876,120]
[400944086,1767867445420,1136.3,0.00032876,120]
[400944087,1767867445471,500.0,0.00032876,120]
[400944088,1767867445595,1136.3,0.00032876,120]
[400944089,1767867445646,500.0,0.00032876,120]
[400944090,1767867445704,500.0,0.00032876,120]
[400944091,1767867445755,1136.3,0.00032876,120]
[400944092,1767867445809,500.0,0.00032876,120]
[400944093,1767867445906,500.0,0.00032876,120]
[400944094,1767867445954,1136.3,0.00032876,120]
[400944095,1767867446019,500.0,0.00032876,120]
[400944096,1767867446128,500.0,0.00032876,120]
[400944097,1767867446180,500.0,0.00032876,120]
[400944098,1767867446232,1136.3,0.00032876,120]
[400944099,1767867446300,500.0,0.00032876,120]
[400944100,1767867446351,554.37799828,0.00032876,120]
[400944101,1767867446407,1136.3,0.00032876,120]
[400944102,1767867446461,500.0,0.00032876,120]
[400944103,1767867446516,500.0,0.00032876,120]
[400944104,1767867446575,1136.3,0.00032876,120]
[400944105,1767867446628,500.0,0.00032876,120]
[400944106,1767867446691,500.0,0.00032876,120]
[400944107,1767867446741,1136.3,0.00032876,120]
[400944108,1767867446799,500.0,0.00032876,120]
[400944109,1767867446902,500.0,0.00032876,120]
[400944110,1767867446949,1136.3,0.00032876,120]
[400944111,1767867447003,500.0,0.00032876,120]
[400944112,1767867447090,500.0,0.00032876,120]
[400944113,1767867447142,1136.3,0.00032876,120]
[400944114,1767867447210,151.39489738,0.00032876,120]
[400944115,1767867447268,500.0,0.00032876,120]
[400944116,1767867447316,1136.3,0.00032876,120]
[400944117,1767867447467,500.0,0.00032876,120]
[400944118,1767867447608,1136.3,0.00032876,120]
[400944119,1767867447676,500.0,0.00032876,120]
[400944120,1767867447734,1136.3,0.00032876,120]
[400944121,1767867447791,500.0,0.00032876,120]
[400944122,1767867447851,1136.3,0.00032876,120]
[400944123,1767867447910,458.10821138,0.00032876,120]
[400944124,1767867447962,500.0,0.00032876,120]
[400944125,1767867448013,1136.3,0.00032876,120]
[400944126,1767867448070,500.0,0.00032876,120]
[400944127,1767867448124,1136.3,0.00032876,120]
[400944128,1767867448182,500.0,0.00032876,120]
[400944129,1767867448234,1136.3,0.00032876,120]
[400944130,1767867448387,1505.64,0.00032876,120]
[400944131,1767867448445,500.0,0.00032876,120]
[400944132,1767867448500,1136.3,0.00032876,120]
[400944133,1767867448572,500.0,0.00032876,120]
[400944134,1767867448623,1505.64,0.00032876,120]
[400944135,1767867448678,1136.3,0.00032876,120]
[400944136,1767867448740,535.25436774,0.00032876,120]
[400944137,1767867448790,1136.43381685,0.00032876,120]
[400944138,1767867448840,1505.64,0.00032876,120]
[400944139,1767867448912,1505.64,0.00032876,120]
[400944140,1767867449068,1505.64,0.00032876,120]
[400944141,1767867449297,1505.64,0.00032876,120]
[400944142,1767867449547,1448.64872969,0.00032876,120]
[400944143,1767867489631,-150.0,0.00011189,2]
[400944144,1767867489665,-300.0,0.00011189,2]
[400944145,1767867489699,-250.0,0.0001119,2]
[400944146,1767867489737,-500.0,0.0001119,2]
[400944147,1767867489774,-500.0,0.0001119,2]
[400944148,1767867489812,-500.0,0.0001119,2]
[400944149,1767867489848,-500.0,0.0001119,2]
[400944150,1767867489884,-500.0,0.0001119,2]
[400944151,1767867489920,-500.0,0.0001119,2]
[400944152,1767867489956,-500.0,0.0001119,2]
[400944153,1767867489991,-500.0,0.0001119,2]
[400944154,1767867490027,-100.01,0.0001119,2]
[400944155,1767867490201,-399.99,0.0001119,2]
[400944156,1767867490236,-500.0,0.0001119,2]
[400944157,1767867490279,-500.0,0.0001119,2]
[400944158,1767867490323,-500.0,0.0001119,2]
[400944159,1767867490361,-431.36646263,0.0001119,2]
[400944160,1767867490403,-500.0,0.0001119,2]
[400944161,1767867490444,-500.0,0.0001119,2]
[400944162,1767867490482,-500.0,0.0001119,2]
[400944163,1767867490517,-500.0,0.0001119,2]
[400944164,1767867490557,-500.0,0.0001119,2]
[400944165,1767867491145,-195.0,0.0001119,2]
[400944166,1767867491158,-236.36646263,0.0001119,2]
[400944167,1767867491187,-263.63353737,0.0001119,2]
[400944168,1767867491197,-73.66353737,0.0001119,2]
[400944169,1767867491297,-426.33646263,0.0001119,2]
[400944170,1767867491334,-500.0,0.0001119,2]
[400944171,1767867491370,-500.0,0.0001119,2]
[400944172,1767867491407,-500.0,0.0001119,2]
[400944173,1767867491444,-500.0,0.0001119,2]
[400944174,1767867491483,-500.0,0.0001119,2]
[400944175,1767867491520,-500.0,0.0001119,2]
[400944176,1767867491557,-500.0,0.0001119,2]
[400944177,1767867491595,-500.0,0.0001119,2]
[400944178,1767867491634,-500.0,0.0001119,2]
[400944179,1767867491834,-500.0,0.0001119,2]
[400944180,1767867491870,-500.0,0.0001119,2]
[400944181,1767867491907,-500.0,0.0001119,2]
[400944182,1767867491943,-500.0,0.0001119,2]
[400944183,1767867491979,-500.0,0.0001119,2]
[400944184,1767867492015,-500.0,0.0001119,2]
[400944185,1767867492052,-500.0,0.0001119,2]
[400944186,1767867492088,-500.0,0.0001119,2]
[400944187,1767867492128,-500.0,0.0001119,2]
[400944188,1767867492166,-500.0,0.0001119,2]
[400944189,1767867492338,-500.0,0.0001119,2]
[400944190,1767867492377,-500.0,0.0001119,2]
[400944191,1767867492415,-500.0,0.0001119,2]
[400944192,1767867492452,-500.0,0.0001119,2]
[400944193,1767867492491,-500.0,0.0001119,2]
[400944194,1767867492527,-500.0,0.0001119,2]
[400944195,1767867492565,-500.0,0.0001119,2]
[400944196,1767867492602,-500.0,0.0001119,2]
[400944197,1767867492637,-500.0,0.0001119,2]
[400944198,1767867492673,-500.0,0.0001119,2]
[400944199,1767867492754,-500.0,0.0001119,2]
[400944200,1767867492791,-500.0,0.0001119,2]
[400944201,1767867492828,-500.0,0.0001119,2]
[400944202,1767867492863,-500.0,0.0001119,2]
[400944203,1767867492898,-500.0,0.0001119,2]
[400944204,1767867492934,-343.13664626,0.0001119,2]
[400944205,1767867492968,-500.0,0.00011191,2]
[400944206,1767867493001,-500.0,0.00011191,2]
[400944207,1767867493034,-155.5355866,0.00011191,2]
[400944208,1767867493069,-295.66943389,0.00011191,2]
[400944209,1767867493103,-177.59533175,0.00011191,2]
[400944210,1767867493969,-221.44747844,0.00011191,2]
[400944211,1767867494013,-195.0,0.00011191,2]
[400944212,1767867495530,-195.0,0.00011192,2]
[400944213,1767867495550,-223.24104612,0.00011192,2]
[400944214,1767867495583,-10000.01,0.00011192,2]
[400944215,1767867495634,-1200.0,0.00011189,2]
[400944216,1767867495645,-8800.01,0.00011192,2]
[400944217,1767867495975,-1852.27528185,0.00011192,2]
[400944218,1767867496009,-519.98620828,0.00011192,2]
[400944219,1767867496043,-519.98620828,0.00011192,2]
[400944220,1767867496076,-193.23541938,0.00011193,2]
[400944221,1767867496110,-193.23541938,0.0001123,2]
[400944222,1767867496146,-193.23541938,0.00011267,2]
[400944223,1767867496765,-3056.1020869,0.00011285,2]
[400944224,1767867496860,-10000.01,0.00011285,2]
[400944225,1767867496887,-10000.01,0.00011285,2]
[400944226,1767867501861,-10000.01,0.00011285,2]
[400944227,1767867501978,-10000.01,0.00011285,2]
[400944228,1767867502095,-10000.01,0.00011285,2]
[400944230,1767867620543,-2500.0,0.00011185,2]
[400944231,1767867620571,-242.0,0.00011185,2]
[400944232,1767867620602,-1200.0,0.00011192,2]
[400944233,1767867620630,-300.0,0.00011192,2]
[400944234,1767867620660,-193.0,0.00011193,2]
[400944235,1767867620765,-1130.01,0.00011193,2]
[400944236,1767867620814,-10000.01,0.00011193,2]
[400944237,1767867626940,-10000.01,0.00011193,2]
[400944238,1767867627059,-10000.01,0.00011193,2]
[400944239,1767867683022,-210.37379269,0.00011192,2]
[400944240,1767867697980,-517.16043577,0.00011185,2]
[400944241,1767867699938,-316.10032021,0.00011185,2]
[400944242,1767867699960,-89.62620731,0.00011192,2]
[400944243,1767867699983,-94.27347248,0.00011193,2]
[400944244,1767867702643,-453.73164159,0.00011185,2]
[400944245,1767867712420,-282.82985658,0.00011185,2]
[400944246,1767867714715,-399.60829359,0.00011185,2]
[400944247,1767867716054,986.13372685,0.00010658,2]
[400944248,1767867716081,64.56627315,0.00010658,2]
[400944249,1767867716697,-307.92597978,0.00011185,2]
[400944250,1767867718454,-218.4146248,0.00011185,2]
[400944251,1767867720859,-450.08356838,0.00011185,2]
[400944252,1767867727587,-199.80783017,0.00011185,2]
[400944253,1767867730874,-156.42979489,0.00011185,2]
[400944254,1767867735882,500.0,0.000176,30]
[400944255,1767867736380,500.0,0.000152,30]
[400944256,1767867742362,555.11035701,0.000176,30]
[400944257,1767867750822,461.54708571,0.000176,30]
[400944258,1767867772464,-275.33135499,0.00011184,2]
[400944259,1767867774414,-200.0,0.00011184,2]
[400944260,1767867774506,945.11,0.00010613,2]
[400944261,1767867778469,-24.66864501,0.00011184,2]
[400944262,1767867778492,-368.24243727,0.00011184,2]
[400944263,1767867780862,-131.75756273,0.00011184,2]
[400944264,1767867780889,-30.65263863,0.00011184,2]
[400944265,1767867782718,-199.48883797,0.00011183,2]
[400944266,1767867784498,-100.51116203,0.00011183,2]
[400944267,1767867784528,-104.75942508,0.00011184,2]
[400944268,1767867786380,-364.58793629,0.00011184,2]
[400944269,1767867786405,-51.84331447,0.00011184,2]
[400944270,1767867790125,-448.15668553,0.00011184,2]
[400944271,1767867790150,-51.84331447,0.00011184,2]
[400944272,1767867791692,-162.11424412,0.00011184,2]
[400944273,1767867793774,-36.04244141,0.00011184,2]
[400944274,1767867793804,-392.83235444,0.00011184,2]
[400944275,1767867796361,-350.83942694,0.00011183,2]
[400944276,1767867798484,-262.78607824,0.00011183,2]
[400944277,1767867800068,-165.54,0.00011183,2]
[400944278,1767867802683,-203.09776476,0.00011183,2]
[400944279,1767867804691,-217.73673006,0.00011183,2]
[400944280,1767867804719,-77.04766267,0.00011184,2]
[400944281,1767867807346,-30.11998289,0.00011184,2]
[400944282,1767867807373,-263.10583184,0.00011184,2]
[400944283,1767867808880,-236.09533642,0.00011184,2]
[400944284,1767867818644,-0.79883174,0.00011184,2]
[400944285,1767867818670,-222.38092977,0.00011184,2]
[400944286,1767867820658,-189.6333978,0.00011184,2]
[400944287,1767867823312,-87.98567243,0.00011184,2]
[400944288,1767867823336,-212.01432757,0.00011184,2]
[400944289,1767867826197,-266.9860136,0.00011184,2]
[400944290,1767867830788,-20.99965883,0.00011184,2]
[400944291,1767867830815,-411.31254563,0.00011184,2]
[400944292,1767867832127,500.0,0.00010578,2]
[400944293,1767867832358,-88.68745437,0.00011184,2]
[400944294,1767867832384,-101.60913639,0.00011184,2]
[400944296,1767867833844,-283.46910398,0.00011184,2]
[400944297,1767867836534,-114.92175963,0.00011184,2]
[400944298,1767867836564,-425.33428701,0.00011184,2]
[400944299,1767867848166,-150.0,0.00011183,2]
[400944300,1767867848195,-74.66571299,0.00011184,2]
[400944301,1767867848223,-70.76137617,0.00011184,2]
[400944302,1767867850244,-274.16345229,0.00011183,2]
[400944303,1767867851910,-25.83654771,0.00011183,2]
[400944304,1767867851935,-324.42958409,0.00011184,2]
[400944305,1767867853306,-195.0,0.00011184,2]
[400944306,1767867853334,-61.2808779,0.00011184,2]
[400944307,1767867854901,-43.52816184,0.00011184,2]
[400944308,1767867854929,-288.69628384,0.00011184,2]
[400944309,1767867857735,-300.93263813,0.00011143,2]
[400944310,1767867859085,-371.45406818,0.00011143,2]
[400944311,1767867859109,-167.65157401,0.00011143,2]
[400944312,1767867877515,-165.97827688,0.00011143,2]
[400944313,1767867879101,-198.00530647,0.00011143,2]
[400944314,1767867881251,-140.75154895,0.00011143,2]
[400944315,1767867881277,-211.30371616,0.00011184,2]
[400944316,1767867881301,-117.63324847,0.00011184,2]
[400944317,1767867885299,-168.05451932,0.00011184,2]
[400944318,1767867886934,-241.81785238,0.00011184,2]
[400944319,1767867888557,-97.97695685,0.00011184,2]
[400944320,1767867888582,-247.18244131,0.00011184,2]
[400944321,1767867892254,-167.77555432,0.00011184,2]
[400944322,1767867895000,-85.04200437,0.00011184,2]
[400944323,1767867895027,-113.32854736,0.00011184,2]
[400944324,1767867897099,-271.27599792,0.00011184,2]
[400944325,1767867899847,-115.39545472,0.00011184,2]
[400944326,1767867899872,-47.62143193,0.00011184,2]
[400944327,1767867935796,-10000.01,0.00011143,2]
[400944328,1767867945325,-150.0,0.00011011,2]
[400944329,1767867945354,-247.26000857,0.00011011,2]
[400944330,1767867945383,-500.0,0.00011011,2]
[400944331,1767867945411,-500.0,0.00011011,2]
[400944332,1767867945441,-150.0,0.00011011,2]
[400944333,1767867945469,-500.0,0.00011011,2]
[400944334,1767867945651,-532.0,0.00011011,2]
[400944335,1767867945681,-182.10117033,0.00011066,2]
[400944336,1767867945709,-500.0,0.00011066,2]
[400944337,1767867945737,-500.0,0.00011066,2]
[400944338,1767867945765,-500.0,0.00011066,2]
[400944339,1767867945793,-532.0,0.00011066,2]
[400944340,1767867945821,-150.0,0.00011121,2]
[400944341,1767867946216,-113.2876422,0.00011121,2]
[400944342,1767867948496,-386.7123578,0.00011121,2]
[400944343,1767867948526,-500.0,0.00011121,2]
[400944344,1767867948556,-532.0,0.00011121,2]
[400944345,1767867948748,-7162.5852844,0.00011143,2]
[400944346,1767867953165,-186.31889276,0.00011011,2]
[400944347,1767867956817,-259.68110724,0.00011011,2]
[400944348,1767867956839,-37.51889276,0.00011011,2]
[400944349,1767867958316,-269.64330417,0.00011011,2]
[400944350,1767867959797,-192.83780307,0.00011011,2]
[400944351,1767867959819,-107.16219693,0.00011011,2]
[400944352,1767867962404,-160.30780307,0.0001101,2]
[400944353,1767867964561,-139.69219693,0.0001101,2]
[400944354,1767867964583,-42.83780307,0.00011011,2]
[400944355,1767867964606,-221.27,0.00011011,2]
[400944356,1767867982541,500.0,0.00010283,2]
[400944357,1767867985091,-278.73,0.00011011,2]
[400944358,1767867985119,-500.0,0.00011011,2]
[400944359,1767867985146,-150.0,0.00011011,2]
[400944360,1767867985174,-150.0,0.00011011,2]
[400944361,1767867985201,-150.0,0.00011011,2]
[400944362,1767867985227,-150.0,0.00011011,2]
[400944363,1767867985256,-150.0,0.00011011,2]
[400944364,1767867985285,-150.0,0.00011011,2]
[400944365,1767867985312,-500.0,0.00011011,2]
[400944366,1767867985340,-500.0,0.00011011,2]
[400944367,1767867985366,-150.6048441,0.00011011,2]
[400944368,1767867985394,-446.0,0.00011066,2]
[400944369,1767867985422,-500.0,0.00011066,2]
[400944370,1767867985450,-233.66248833,0.00011066,2]
[400944371,1767867985477,-500.0,0.00011066,2]
[400944372,1767867985504,-482.01533514,0.00011066,2]
[400944373,1767867985780,-17.98466486,0.00011066,2]
[400944374,1767868001298,-150.0,0.00011066,2]
[400944375,1767868001327,-150.0,0.00011066,2]
[400944376,1767868001356,-150.0,0.00011066,2]
[400944377,1767868001384,-150.0,0.00011066,2]
[400944378,1767868001412,-150.0,0.00011066,2]
[400944379,1767868001440,-150.0,0.00011066,2]
[400944380,1767868001468,-500.0,0.00011066,2]
[400944381,1767868001498,-500.0,0.00011066,2]
[400944382,1767868001527,-446.0,0.00011121,2]
[400944383,1767868001555,-500.0,0.00011121,2]
[400944384,1767868001583,-500.0,0.00011121,2]
[400944385,1767868001612,-500.0,0.00011121,2]
[400944386,1767868001640,-150.0,0.00011121,2]
[400944387,1767868001668,-150.0,0.00011121,2]
[400944388,1767868001695,-150.0,0.00011121,2]
[400944389,1767868001723,-150.0,0.00011121,2]
[400944390,1767868001751,-150.0,0.00011121,2]
[400944391,1767868001778,-217.19962447,0.00011121,2]
[400944392,1767868002172,-373.61075106,0.00011121,2]
[400944393,1767868005858,-126.38924894,0.00011121,2]
[400944394,1767868005905,-500.88287597,0.00011121,2]
[400944395,1767868005943,-503.28319711,0.00011142,2]
[400944396,1767868005983,-500.0,0.00011142,2]
[400944397,1767868006019,-191.61681908,0.00011142,2]
[400944398,1767868006059,-500.0,0.00011142,2]
[400944399,1767868006098,-500.0,0.00011142,2]
[400944400,1767868006140,-500.0,0.00011142,2]
[400944401,1767868006177,-500.0,0.00011142,2]
[400944402,1767868006214,-500.0,0.00011142,2]
[400944403,1767868006251,-500.0,0.00011142,2]
[400944404,1767868006505,-355.6657178,0.00011142,2]
[400944405,1767868009128,-144.3342822,0.00011142,2]
[400944406,1767868009164,-500.0,0.00011142,2]
[400944407,1767868009203,-500.0,0.00011142,2]
[400944408,1767868009241,-641.11658603,0.00011142,2]
[400944409,1767868009287,-500.0,0.00011142,2]
[400944410,1767868009323,-500.0,0.00011142,2]
[400944411,1767868009361,-500.0,0.00011142,2]
[400944412,1767868009398,-500.0,0.00011142,2]
[400944413,1767868009433,-500.0,0.00011142,2]
[400944414,1767868009468,-500.0,0.00011142,2]
[400944415,1767868010711,-429.10826354,0.00011142,2]
[400944416,1767868011679,2372.2,0.00010343,2]
[400944417,1767868044556,-300.0,0.00011141,2]
[400944418,1767868044899,-150.0,0.00011141,2]
[400944419,1767868044933,-70.89173646,0.00011142,2]
[400944420,1767868044967,-500.0,0.00011142,2]
[400944421,1767868045002,-500.0,0.00011142,2]
[400944422,1767868045036,-500.0,0.00011142,2]
[400944423,1767868045068,-500.0,0.00011142,2]
[400944424,1767868045102,-500.0,0.00011142,2]
[400944425,1767868045133,-500.0,0.00011142,2]
[400944426,1767868045165,-500.0,0.00011142,2]
[400944427,1767868045198,-500.0,0.00011142,2]
[400944428,1767868045230,-458.22652708,0.00011142,2]
[400944429,1767868045652,-41.77347292,0.00011142,2]
[400944430,1767868050500,-500.0,0.00011142,2]
[400944431,1767868050532,-500.0,0.00011142,2]
[400944432,1767868050567,-500.0,0.00011142,2]
[400944433,1767868050598,-500.0,0.00011142,2]
[400944434,1767868050628,-500.0,0.00011142,2]
[400944435,1767868050665,-500.0,0.00011142,2]
[400944436,1767868050694,-500.0,0.00011142,2]
[400944437,1767868050723,-500.0,0.00011142,2]
[400944438,1767868050753,-500.0,0.00011142,2]
[400944439,1767868050785,-470.25680716,0.00011142,2]
[400944440,1767868051004,-59.49638568,0.00011142,2]
[400944441,1767868057434,-440.50361432,0.00011142,2]
[400944442,1767868057466,-500.0,0.00011142,2]
[400944443,1767868057514,-8119.00277136,0.00011143,2]
[400944444,1767868063373,6253.28153079,0.00013,15]
[400944445,1767868076779,-500.0,0.00011142,2]
[400944446,1767868076813,-500.0,0.00011142,2]
[400944447,1767868076845,-500.0,0.00011142,2]
[400944448,1767868076882,-500.0,0.00011142,2]
[400944449,1767868076914,-500.0,0.00011142,2]
[400944450,1767868076950,-500.0,0.00011142,2]
[400944451,1767868076984,-500.0,0.00011142,2]
[400944452,1767868077015,-500.0,0.00011142,2]
[400944453,1767868077046,-500.0,0.00011142,2]
[400944454,1767868077076,-500.0,0.00011142,2]
[400944455,1767868077210,-500.0,0.00011142,2]
[400944456,1767868077241,-500.0,0.00011142,2]
[400944457,1767868077275,-536.81470889,0.00011142,2]
[400944458,1767868077306,-500.0,0.00011142,2]
[400944459,1767868077339,-500.0,0.00011142,2]
[400944460,1767868077377,-500.0,0.00011142,2]
[400944461,1767868077410,-500.0,0.00011142,2]
[400944462,1767868077443,-500.0,0.00011142,2]
[400944463,1767868077475,-500.0,0.00011142,2]
[400944464,1767868077507,-426.38058222,0.00011142,2]
[400944465,1767868077615,-73.61941778,0.00011142,2]
[400944466,1767868077648,-500.0,0.00011142,2]
[400944467,1767868077680,-500.0,0.00011142,2]
[400944468,1767868077712,-500.0,0.00011142,2]
[400944469,1767868077745,-500.0,0.00011142,2]
[400944470,1767868077778,-500.0,0.00011142,2]
[400944471,1767868078556,-110.44412667,0.00011143,2]
[400944472,1767868078574,-4852.77116444,0.00011143,2]
[400944473,1767868080666,-10000.01,0.00011143,2]
[400944474,1767868083170,-300.0,0.00011142,2]
[400944475,1767868083200,-3569.03722347,0.00011143,2]
[400944476,1767868083229,-504.29002975,0.00011143,2]
[400944477,1767868083258,-504.29002975,0.00011143,2]
[400944478,1767868083365,-2500.0,0.00011143,2]
[400944479,1767868083395,-2481.8671,0.00011143,2]
[400944480,1767868083555,-36.2758,0.00011143,2]
[400944481,1767868083584,-236.5514,0.00011143,2]
[400944482,1767868083608,-8.22403406,0.00011175,2]
[400944484,1767868090209,164.07,8.295e-05,2]
[400944485,1767868091130,164.07,0.00010369,2]
[400944486,1767868105819,557.1974537,0.00010326,2]
[400944487,1767868105842,608.3225463,0.00010326,2]
[400944490,1767868126149,1208.89,0.0001032,2]
[400944494,1767868162503,-152.05510907,0.00011011,2]
[400944495,1767868165729,-347.94489093,0.00011011,2]
[400944496,1767868165751,-34.41021814,0.00011021,2]
[400944497,1767868167324,-159.04489093,0.00011021,2]
[400944498,1767868173318,3450.00118055,0.00010272,2]
[400944499,1767868173344,1785.83881945,0.00010272,2]
[400944504,1767868213212,-184.76241326,0.00011021,2]
[400944505,1767868213241,-378.21752233,0.00011021,2]
[400944506,1767868213271,-193.23541938,0.00011021,2]
[400944507,1767868213299,-240.0,0.00011021,2]
[400944508,1767868213333,-195.0,0.00011027,2]
[400944509,1767868213362,-193.23541938,0.00011032,2]
[400944510,1767868213392,-193.23541938,0.00011043,2]
[400944511,1767868213420,-500.0,0.00011066,2]
[400944512,1767868213449,-273.5996837,0.00011069,2]
[400944513,1767868213476,-300.0,0.00011084,2]
[400944514,1767868213503,-300.0,0.00011084,2]
[400944515,1767868213531,-150.0,0.00011084,2]
[400944516,1767868213558,-1200.0,0.00011084,2]
[400944517,1767868230808,-311.8925321,0.00011085,2]
[400944535,1767868231368,-932.78264644,0.00011085,2]
[400944538,1767868231379,-2554.14498459,0.00011085,2]
[400944541,1767868231390,-349.17285286,0.00011085,2]
[400944543,1767868231407,-1052.16948953,0.00011085,2]
[400944544,1767868231533,-259.85,0.00011085,2]
[400944545,1767868231587,-656.09435565,0.00011085,2]
[400944546,1767868231599,-434.57723662,0.00011085,2]
[400944547,1767868231610,-887.52956503,0.00011085,2]
[400944559,1767868233688,-289.7249491,0.00011085,2]
[400944560,1767868233886,672.63,0.00010959,2]
[400944577,1767868237961,-160.14830861,0.00011084,2]
[400944578,1767868237983,-125.39984378,0.00011084,2]
[400944599,1767868238292,-374.60015622,0.00011084,2]
[400944600,1767868238301,-61.08156235,0.00011084,2]
[400944603,1767868238345,-243.27425701,0.00011084,2]
[400944605,1767868238356,-500.0,0.00011084,2]
[400944607,1767868238366,-537.66080493,0.00011084,2]
[400944609,1767868238375,-500.0,0.00011084,2]
[400944611,1767868238385,-500.0,0.00011084,2]
[400944613,1767868238395,-500.0,0.00011084,2]
[400944615,1767868238408,-992272.06138808,0.00011085,2]
[400944617,1767868238419,-300.0,0.00011103,2]
[400944619,1767868238429,-500.0,0.00011121,2]
[400944621,1767868238439,-1561.43224408,0.00011133,2]
[400944623,1767868238449,-500.0,0.00011141,2]
[400944626,1767868238460,-630289.4991853,0.00011143,2]
[400944628,1767868238469,-2276.8149,0.00011143,2]
[400944630,1767868238480,-35492.6601,0.00011143,2]
[400944632,1767868238490,-2500.0,0.00011143,2]
[400944634,1767868238499,-1200.0,0.00011174,2]
[400944636,1767868238508,-532.0,0.00011175,2]
[400944638,1767868238518,-446.0,0.00011175,2]
[400944640,1767868238527,-355.38896935,0.00011175,2]
[400944642,1767868238536,-500.0,0.00011175,2]
[400944644,1767868238545,-151.65586908,0.00011175,2]
[400944646,1767868238555,-180.41152158,0.00011175,2]
[400944648,1767868238565,-178.40260868,0.00011175,2]
[400944650,1767868238575,-150.0,0.00011175,2]
[400944652,1767868238585,-150.0,0.00011175,2]
[400944654,1767868238595,-152.76998294,0.00011175,2]
[400944656,1767868238605,-357.48560146,0.00011175,2]
[400944658,1767868238614,-500.0,0.00011175,2]
[400944660,1767868238624,-195.0,0.00011179,2]
[400944662,1767868238633,-193.0,0.00011183,2]
[400944664,1767868238642,-1403.26785092,0.00011193,2]
[400944666,1767868238651,-532.0,0.0001123,2]
[400944668,1767868238660,-446.0,0.0001123,2]
[400944670,1767868238670,-199.62704522,0.0001123,2]
[400944672,1767868238680,-174.74090706,0.0001123,2]
[400944674,1767868238691,-500.0,0.0001123,2]
[400944676,1767868238700,-150.99,0.00011239,2]
[400944678,1767868238710,-999.99,0.00011239,2]
[400944679,1767868238719,-241169.0571863,0.00011243,2]
[400944682,1767868238729,-9999.99,0.00011243,2]
[400944684,1767868238739,-150.99,0.00011243,2]
[400944686,1767868238747,-499.99,0.00011243,2]
[400944688,1767868238757,-1465.64,0.00011243,2]
[400944690,1767868238767,-9999.99,0.00011243,2]
[400944692,1767868238776,-9999.99,0.00011243,2]
[400944694,1767868238786,-44627.92,0.00011243,2]
[400944696,1767868238796,-9999.99,0.00011243,2]
[400944698,1767868238806,-2040.63,0.00011284,2]
[400944700,1767868238815,-532.0,0.00011285,2]
[400944702,1767868238824,-446.0,0.00011285,2]
[400944704,1767868238835,-500.0,0.00011285,2]
[400944706,1767868238844,-151.0,0.00011285,2]
[400944708,1767868238853,-151.0,0.00011285,2]
[400944709,1767868238863,-18841.29,0.00011286,2]
[400944711,1767868238873,-151.0,0.00011286,2]
[400944713,1767868238883,-151.0,0.00011286,2]
[400944715,1767868238893,-151.0,0.00011286,2]
[400944718,1767868238904,-151.0,0.00011286,2]
[400944720,1767868238913,-151.0,0.00011286,2]
[400944722,1767868238923,-151.0,0.00011286,2]
[400944724,1767868238933,-151.0,0.00011286,2]
[400944725,1767868238943,-151.0,0.00011286,2]
[400944728,1767868238954,-200.0,0.00011286,2]